[Event "Titled Tuesday Blitz August 17 2021"]
[White "Federzoni, Enzo"]
[Black "Rosenberg, Evan S"]
[WhiteFideId "2173301"]
[BlackFideId "2019299"]
[WhiteElo "1956"]
[BlackElo "2283"]
[Result "1-0"]
[Round "08"]
[TimeControl "180+1"]
[Date "2021.08.18"]
[WhiteClock "0:00:23"]
[BlackClock "0:00:01"]

1. e4 {[%clk 0:03:00]}  c6 {[%clk 0:03:00]} 2. d4 {[%clk 0:02:59]}  d5 {[%clk 0:03:00]} 3. exd5 {[%clk 0:03:00]}  cxd5 {[%clk 0:03:00]} 4. c4 {[%clk 0:02:59]}  Nf6 {[%clk 0:03:00]} 5. Nc3 {[%clk 0:02:57]}  g6 {[%clk 0:03:00]} 6. cxd5 {[%clk 0:02:53]}  Bg7 {[%clk 0:03:01]} 7. Bb5+ {[%clk 0:02:46]}  Nbd7 {[%clk 0:02:59]} 8. d6 {[%clk 0:02:38]}  O-O {[%clk 0:02:59]} 9. dxe7 {[%clk 0:02:34]}  Qxe7+ {[%clk 0:03:00]} 10. Nge2 {[%clk 0:02:34]}  a6 {[%clk 0:02:58]} 11. Bd3 {[%clk 0:02:34]}  b5 {[%clk 0:02:58]} 12. O-O {[%clk 0:02:33]}  Bb7 {[%clk 0:02:59]} 13. Bf4 {[%clk 0:02:25]}  Rad8 {[%clk 0:02:41]} 14. Qd2 {[%clk 0:02:18]}  Rfe8 {[%clk 0:02:36]} 15. Bh6 {[%clk 0:02:09]}  Bh8 {[%clk 0:02:33]} 16. Rae1 {[%clk 0:02:07]}  b4 {[%clk 0:02:33]} 17. Nd1 {[%clk 0:02:04]}  Ne4 {[%clk 0:02:24]} 18. Bxe4 {[%clk 0:01:55]}  Qxe4 {[%clk 0:02:24]} 19. Ne3 {[%clk 0:01:56]}  Ne5 {[%clk 0:01:49]} 20. Ng3 {[%clk 0:01:51]}  Qh4 {[%clk 0:01:21]} 21. Qxb4 {[%clk 0:01:51]}  Bxg2 {[%clk 0:01:04]} 22. Kxg2 {[%clk 0:01:52]}  Rxd4 {[%clk 0:00:59]} 23. Qb6 {[%clk 0:01:43]}  Rb4 {[%clk 0:00:43]} 24. Qc5 {[%clk 0:01:35]}  Rb5 {[%clk 0:00:37]} 25. Qd6 {[%clk 0:01:24]}  Qxh6 {[%clk 0:00:36]} 26. Nef5 {[%clk 0:01:25]}  Qf8 {[%clk 0:00:25]} 27. Qxf8+ {[%clk 0:00:59]}  Kxf8 {[%clk 0:00:22]} 28. Nd6 {[%clk 0:00:59]}  Reb8 {[%clk 0:00:18]} 29. Nxb5 {[%clk 0:00:59]}  Rxb5 {[%clk 0:00:18]} 30. b3 {[%clk 0:00:57]}  h5 {[%clk 0:00:17]} 31. Rc1 {[%clk 0:00:54]}  Bf6 {[%clk 0:00:15]} 32. Ne4 {[%clk 0:00:52]}  Be7 {[%clk 0:00:13]} 33. Rfd1 {[%clk 0:00:50]}  Kg7 {[%clk 0:00:11]} 34. Rc7 {[%clk 0:00:47]}  Bh4 {[%clk 0:00:10]} 35. f4 {[%clk 0:00:45]}  Ng4 {[%clk 0:00:10]} 36. Rdd7 {[%clk 0:00:43]}  Rf5 {[%clk 0:00:08]} 37. Nd6 {[%clk 0:00:41]}  Rxf4 {[%clk 0:00:06]} 38. Rxf7+ {[%clk 0:00:39]}  Rxf7 {[%clk 0:00:07]} 39. Rxf7+ {[%clk 0:00:40]}  Kg8 {[%clk 0:00:07]} 40. Ra7 {[%clk 0:00:37]}  Ne3+ {[%clk 0:00:06]} 41. Kf3 {[%clk 0:00:37]}  Bg5 {[%clk 0:00:05]} 42. Rxa6 {[%clk 0:00:36]}  Nd5 {[%clk 0:00:05]} 43. a4 {[%clk 0:00:33]}  Nb4 {[%clk 0:00:04]} 44. Ra7 {[%clk 0:00:32]}  Nd3 {[%clk 0:00:03]} 45. a5 {[%clk 0:00:31]}  Ne5+ {[%clk 0:00:03]} 46. Ke4 {[%clk 0:00:31]}  Nc6 {[%clk 0:00:02]} 47. Ra6 {[%clk 0:00:26]}  Nb4 {[%clk 0:00:02]} 48. Rb6 {[%clk 0:00:25]}  Nc2 {[%clk 0:00:02]} 49. a6 {[%clk 0:00:24]}  Be3 {[%clk 0:00:01]} 50. Rb7 {[%clk 0:00:23]} 1-0


[Site "https://www.chess.com"]

[Event "Titled Tuesday Blitz August 17 2021"]
[White "Fernandez Hernandez, Arturo A."]
[Black "Dudzinski, Pawel"]
[WhiteFideId "3509230"]
[BlackFideId "1117890"]
[WhiteElo "2400"]
[BlackElo "2193"]
[Result "0-1"]
[Round "08"]
[TimeControl "180+1"]
[Date "2021.08.18"]
[WhiteClock "0:00:09"]
[BlackClock "0:00:25"]

1. e4 {[%clk 0:03:00]}  c6 {[%clk 0:02:59]} 2. Nc3 {[%clk 0:02:59]}  d5 {[%clk 0:02:58]} 3. Nf3 {[%clk 0:03:00]}  g6 {[%clk 0:02:57]} 4. d4 {[%clk 0:02:57]}  Bg7 {[%clk 0:02:52]} 5. h3 {[%clk 0:02:56]}  Nf6 {[%clk 0:02:50]} 6. Bd3 {[%clk 0:02:54]}  dxe4 {[%clk 0:02:49]} 7. Nxe4 {[%clk 0:02:53]}  Nxe4 {[%clk 0:02:50]} 8. Bxe4 {[%clk 0:02:54]}  Nd7 {[%clk 0:02:50]} 9. O-O {[%clk 0:02:51]}  O-O {[%clk 0:02:50]} 10. c3 {[%clk 0:02:50]}  Qc7 {[%clk 0:02:48]} 11. Qe2 {[%clk 0:02:37]}  c5 {[%clk 0:02:47]} 12. Rd1 {[%clk 0:02:28]}  cxd4 {[%clk 0:02:47]} 13. Nxd4 {[%clk 0:02:28]}  a6 {[%clk 0:02:46]} 14. Bd5 {[%clk 0:02:16]}  Nb6 {[%clk 0:02:29]} 15. Bb3 {[%clk 0:02:12]}  e5 {[%clk 0:02:29]} 16. Nf3 {[%clk 0:02:07]}  a5 {[%clk 0:02:28]} 17. a3 {[%clk 0:01:53]}  a4 {[%clk 0:02:28]} 18. Ba2 {[%clk 0:01:53]}  Re8 {[%clk 0:02:26]} 19. Ng5 {[%clk 0:01:52]}  Re7 {[%clk 0:02:18]} 20. Be3 {[%clk 0:01:32]}  h6 {[%clk 0:02:13]} 21. Qb5 {[%clk 0:01:30]}  Ra6 {[%clk 0:01:56]} 22. Nxf7 {[%clk 0:01:17]}  Rxf7 {[%clk 0:01:55]} 23. Qe8+ {[%clk 0:01:17]}  Bf8 {[%clk 0:01:52]} 24. Bxb6 {[%clk 0:01:11]}  Rxb6 {[%clk 0:01:42]} 25. Rd8 {[%clk 0:01:09]}  Be6 {[%clk 0:01:33]} 26. Rad1 {[%clk 0:00:31]}  Bxa2 {[%clk 0:01:21]} 27. R1d7 {[%clk 0:00:30]}  Qc5 {[%clk 0:01:04]} 28. Rxf7 {[%clk 0:00:25]}  Bxf7 {[%clk 0:01:03]} 29. Qxa4 {[%clk 0:00:24]}  Rxb2 {[%clk 0:00:54]} 30. Qh4 {[%clk 0:00:24]}  Kg7 {[%clk 0:00:46]} 31. Rd7 {[%clk 0:00:23]}  Qxc3 {[%clk 0:00:31]} 32. Kh2 {[%clk 0:00:19]}  Qc1 {[%clk 0:00:28]} 33. f3 {[%clk 0:00:09]}  Qf4+ {[%clk 0:00:25]} 0-1


[Site "https://www.chess.com"]

[Event "Titled Tuesday Blitz August 17 2021"]
[White "Fier, Alexandr"]
[Black "Tang, Andrew"]
[WhiteFideId "2107139"]
[BlackFideId "2059630"]
[WhiteElo "2569"]
[BlackElo "2588"]
[Result "0-1"]
[Round "08"]
[TimeControl "180+1"]
[Date "2021.08.17"]
[WhiteClock "0:00:01"]
[BlackClock "0:00:04"]

1. d4 {[%clk 0:03:00]}  d5 {[%clk 0:02:59]} 2. c4 {[%clk 0:03:01]}  e6 {[%clk 0:02:59]} 3. Nc3 {[%clk 0:03:01]}  Be7 {[%clk 0:03:00]} 4. cxd5 {[%clk 0:03:00]}  exd5 {[%clk 0:03:01]} 5. Bf4 {[%clk 0:03:00]}  c6 {[%clk 0:03:01]} 6. e3 {[%clk 0:03:00]}  Bf5 {[%clk 0:03:02]} 7. g4 {[%clk 0:03:00]}  Be6 {[%clk 0:03:02]} 8. h3 {[%clk 0:03:01]}  Nd7 {[%clk 0:03:03]} 9. Nf3 {[%clk 0:03:00]}  g5 {[%clk 0:02:56]} 10. Bh2 {[%clk 0:02:58]}  h5 {[%clk 0:02:55]} 11. gxh5 {[%clk 0:02:32]}  Rxh5 {[%clk 0:02:49]} 12. Qc2 {[%clk 0:02:32]}  g4 {[%clk 0:02:11]} 13. hxg4 {[%clk 0:02:28]}  Bxg4 {[%clk 0:02:12]} 14. Bg2 {[%clk 0:02:28]}  Ngf6 {[%clk 0:02:06]} 15. Ne5 {[%clk 0:02:20]}  Nxe5 {[%clk 0:01:45]} 16. Bxe5 {[%clk 0:02:21]}  Bf5 {[%clk 0:01:45]} 17. Qe2 {[%clk 0:01:47]}  Rxh1+ {[%clk 0:01:45]} 18. Bxh1 {[%clk 0:01:48]}  Ng4 {[%clk 0:01:45]} 19. Bg3 {[%clk 0:01:43]}  Qa5 {[%clk 0:01:39]} 20. e4 {[%clk 0:01:23]}  dxe4 {[%clk 0:01:19]} 21. Bxe4 {[%clk 0:01:23]}  Be6 {[%clk 0:01:16]} 22. Rc1 {[%clk 0:01:09]}  Nf6 {[%clk 0:01:08]} 23. Bf3 {[%clk 0:01:07]}  O-O-O {[%clk 0:00:44]} 24. Kf1 {[%clk 0:01:06]}  Rxd4 {[%clk 0:00:42]} 25. Nb5 {[%clk 0:00:56]}  Rb4 {[%clk 0:00:19]} 26. Bxc6 {[%clk 0:00:41]}  bxc6 {[%clk 0:00:18]} 27. Rxc6+ {[%clk 0:00:41]}  Kd7 {[%clk 0:00:14]} 28. Rc7+ {[%clk 0:00:16]}  Ke8 {[%clk 0:00:07]} 29. Rb7 {[%clk 0:00:10]}  Nd5 {[%clk 0:00:05]} 30. Qh5 {[%clk 0:00:06]}  Rxb5 {[%clk 0:00:03]} 31. Qh8+ {[%clk 0:00:01]}  Bf8 {[%clk 0:00:03]} 32. Rxb5 {[%clk 0:00:01]}  Qxb5+ {[%clk 0:00:04]} 33. Kg1 {[%clk 0:00:02]}  Qc6 {[%clk 0:00:03]} 34. Be5 {[%clk 0:00:01]}  Ne7 {[%clk 0:00:04]} 0-1


[Site "https://www.chess.com"]

[Event "Titled Tuesday Blitz August 17 2021"]
[White "Garcia Garcia, Alejandro"]
[Black "Gunina, Valentina"]
[WhiteFideId "3516334"]
[BlackFideId "4167570"]
[WhiteElo "2131"]
[BlackElo "2399"]
[Result "0-1"]
[Round "08"]
[TimeControl "180+1"]
[Date "2021.08.17"]
[WhiteClock "0:00:05"]
[BlackClock "0:00:31"]

1. Nf3 {[%clk 0:03:00]}  d5 {[%clk 0:02:59]} 2. g3 {[%clk 0:03:00]}  c6 {[%clk 0:02:59]} 3. Bg2 {[%clk 0:03:01]}  Bg4 {[%clk 0:03:00]} 4. O-O {[%clk 0:03:02]}  Nd7 {[%clk 0:02:59]} 5. h3 {[%clk 0:03:02]}  Bh5 {[%clk 0:02:58]} 6. c4 {[%clk 0:03:01]}  e6 {[%clk 0:02:58]} 7. cxd5 {[%clk 0:03:01]}  cxd5 {[%clk 0:02:58]} 8. d3 {[%clk 0:03:02]}  Bc5 {[%clk 0:02:57]} 9. e4 {[%clk 0:03:01]}  Ne7 {[%clk 0:02:56]} 10. Nc3 {[%clk 0:03:00]}  dxe4 {[%clk 0:02:56]} 11. dxe4 {[%clk 0:03:00]}  O-O {[%clk 0:02:56]} 12. Qb3 {[%clk 0:02:52]}  Bxf3 {[%clk 0:02:52]} 13. Bxf3 {[%clk 0:02:52]}  Ne5 {[%clk 0:02:53]} 14. Be2 {[%clk 0:02:50]}  N7c6 {[%clk 0:02:51]} 15. Bf4 {[%clk 0:01:36]}  Qf6 {[%clk 0:02:44]} 16. Bxe5 {[%clk 0:01:35]}  Qxe5 {[%clk 0:02:39]} 17. Kg2 {[%clk 0:01:34]}  Nd4 {[%clk 0:02:36]} 18. Qc4 {[%clk 0:01:33]}  Rac8 {[%clk 0:02:33]} 19. f4 {[%clk 0:01:32]}  Qc7 {[%clk 0:02:27]} 20. Rac1 {[%clk 0:01:25]}  Qc6 {[%clk 0:02:00]} 21. Rfd1 {[%clk 0:01:14]}  Rfd8 {[%clk 0:01:54]} 22. b4 {[%clk 0:01:06]}  Nxe2 {[%clk 0:01:01]} 23. Nxe2 {[%clk 0:01:05]}  Rxd1 {[%clk 0:01:00]} 24. Rxd1 {[%clk 0:01:03]}  Bf8 {[%clk 0:00:59]} 25. Qd4 {[%clk 0:00:30]}  Qa4 {[%clk 0:00:56]} 26. Rd2 {[%clk 0:00:28]}  Qxb4 {[%clk 0:00:51]} 27. Qxb4 {[%clk 0:00:27]}  Bxb4 {[%clk 0:00:51]} 28. Rb2 {[%clk 0:00:27]}  a5 {[%clk 0:00:51]} 29. Kf3 {[%clk 0:00:19]}  g6 {[%clk 0:00:50]} 30. Ke3 {[%clk 0:00:19]}  Rd8 {[%clk 0:00:48]} 31. Rc2 {[%clk 0:00:17]}  b6 {[%clk 0:00:48]} 32. e5 {[%clk 0:00:16]}  Bc5+ {[%clk 0:00:48]} 33. Ke4 {[%clk 0:00:16]}  Kg7 {[%clk 0:00:47]} 34. g4 {[%clk 0:00:14]}  Rd1 {[%clk 0:00:44]} 35. f5 {[%clk 0:00:13]}  gxf5+ {[%clk 0:00:43]} 36. gxf5 {[%clk 0:00:14]}  exf5+ {[%clk 0:00:40]} 37. Kxf5 {[%clk 0:00:14]}  Rf1+ {[%clk 0:00:40]} 38. Ke4 {[%clk 0:00:14]}  Rf2 {[%clk 0:00:40]} 39. Kd3 {[%clk 0:00:13]}  Rf3+ {[%clk 0:00:40]} 40. Ke4 {[%clk 0:00:13]}  Rxh3 {[%clk 0:00:41]} 41. Nf4 {[%clk 0:00:13]}  Re3+ {[%clk 0:00:41]} 42. Kf5 {[%clk 0:00:13]}  Bd4 {[%clk 0:00:40]} 43. Rg2+ {[%clk 0:00:13]}  Kf8 {[%clk 0:00:40]} 44. Rd2 {[%clk 0:00:13]}  Rxe5+ {[%clk 0:00:40]} 45. Kg4 {[%clk 0:00:11]}  Bc5 {[%clk 0:00:40]} 46. Nd5 {[%clk 0:00:06]}  h6 {[%clk 0:00:35]} 47. Kf4 {[%clk 0:00:06]}  Rg5 {[%clk 0:00:35]} 48. Nf6 {[%clk 0:00:06]}  Kg7 {[%clk 0:00:34]} 49. Ne8+ {[%clk 0:00:05]}  Kg6 {[%clk 0:00:35]} 50. Rd7 {[%clk 0:00:04]}  Rf5+ {[%clk 0:00:33]} 51. Kg4 {[%clk 0:00:04]}  h5+ {[%clk 0:00:33]} 52. Kh4 {[%clk 0:00:05]}  Rf3 {[%clk 0:00:31]} 0-1


[Site "https://www.chess.com"]

[Event "Titled Tuesday Blitz August 17 2021"]
[White "Garv Gaur"]
[Black "Benyahia, Safin"]
[WhiteFideId "45030839"]
[BlackFideId "7905556"]
[WhiteElo "1950"]
[BlackElo "1551"]
[Result "1-0"]
[Round "08"]
[TimeControl "180+1"]
[Date "2021.08.18"]
[WhiteClock "0:01:05"]
[BlackClock "0:00:08"]

1. d4 {[%clk 0:03:00]}  Nf6 {[%clk 0:02:58]} 2. Nf3 {[%clk 0:03:01]}  d5 {[%clk 0:02:58]} 3. c4 {[%clk 0:03:01]}  e6 {[%clk 0:02:58]} 4. g3 {[%clk 0:03:01]}  c5 {[%clk 0:02:57]} 5. cxd5 {[%clk 0:03:01]}  Nxd5 {[%clk 0:02:55]} 6. Bg2 {[%clk 0:03:01]}  cxd4 {[%clk 0:02:54]} 7. Nxd4 {[%clk 0:03:00]}  Bb4+ {[%clk 0:02:54]} 8. Bd2 {[%clk 0:02:58]}  Bxd2+ {[%clk 0:02:52]} 9. Nxd2 {[%clk 0:02:59]}  O-O {[%clk 0:02:53]} 10. O-O {[%clk 0:02:58]}  Nc6 {[%clk 0:02:51]} 11. Nc4 {[%clk 0:02:55]}  Bd7 {[%clk 0:02:15]} 12. Nb5 {[%clk 0:02:49]}  a6 {[%clk 0:02:03]} 13. Nbd6 {[%clk 0:02:48]}  b5 {[%clk 0:02:01]} 14. Na3 {[%clk 0:02:38]}  Qe7 {[%clk 0:01:54]} 15. Ne4 {[%clk 0:02:37]}  Rac8 {[%clk 0:01:40]} 16. Nc2 {[%clk 0:02:31]}  Rfd8 {[%clk 0:01:34]} 17. Qe1 {[%clk 0:02:13]}  Ne5 {[%clk 0:01:25]} 18. Nd4 {[%clk 0:02:10]}  Nc4 {[%clk 0:01:25]} 19. Rb1 {[%clk 0:01:52]}  Bc6 {[%clk 0:01:12]} 20. Nxc6 {[%clk 0:01:51]}  Rxc6 {[%clk 0:01:12]} 21. Nc3 {[%clk 0:01:39]}  Rcc8 {[%clk 0:01:07]} 22. Nxd5 {[%clk 0:01:38]}  exd5 {[%clk 0:01:07]} 23. Qd1 {[%clk 0:01:37]}  d4 {[%clk 0:01:04]} 24. Qd3 {[%clk 0:01:34]}  Ne5 {[%clk 0:01:00]} 25. Qe4 {[%clk 0:01:33]}  Qf6 {[%clk 0:00:47]} 26. Rfd1 {[%clk 0:01:31]}  Nc4 {[%clk 0:00:39]} 27. b3 {[%clk 0:01:29]}  Nb6 {[%clk 0:00:29]} 28. Rbc1 {[%clk 0:01:26]}  Rxc1 {[%clk 0:00:17]} 29. Rxc1 {[%clk 0:01:27]}  Qg6 {[%clk 0:00:17]} 30. Rc6 {[%clk 0:01:15]}  Qxe4 {[%clk 0:00:16]} 31. Bxe4 {[%clk 0:01:16]}  Nc8 {[%clk 0:00:12]} 32. Rxa6 {[%clk 0:01:14]}  Nd6 {[%clk 0:00:13]} 33. Bd3 {[%clk 0:01:14]}  Kf8 {[%clk 0:00:10]} 34. Rb6 {[%clk 0:01:13]}  Ke7 {[%clk 0:00:07]} 35. Bxb5 {[%clk 0:01:12]}  Nxb5 {[%clk 0:00:08]} 36. Rxb5 {[%clk 0:01:13]}  Ra8 {[%clk 0:00:08]} 37. a4 {[%clk 0:01:13]}  Rc8 {[%clk 0:00:08]} 38. Kg2 {[%clk 0:01:12]}  Rc2 {[%clk 0:00:06]} 39. Kf3 {[%clk 0:01:12]}  Rc3+ {[%clk 0:00:06]} 40. Ke4 {[%clk 0:01:12]}  Rc2 {[%clk 0:00:07]} 41. Kd3 {[%clk 0:01:12]}  Rc3+ {[%clk 0:00:04]} 42. Kxd4 {[%clk 0:01:12]}  Rc2 {[%clk 0:00:05]} 43. Kd3 {[%clk 0:01:13]}  Rb2 {[%clk 0:00:06]} 44. Ke3 {[%clk 0:01:12]}  Rc2 {[%clk 0:00:06]} 45. a5 {[%clk 0:01:12]}  Rc3+ {[%clk 0:00:06]} 46. Kd2 {[%clk 0:01:11]}  Rc6 {[%clk 0:00:07]} 47. Rb6 {[%clk 0:01:11]}  Rc7 {[%clk 0:00:07]} 48. b4 {[%clk 0:01:11]}  Rd7+ {[%clk 0:00:07]} 49. Ke3 {[%clk 0:01:11]}  Kd8 {[%clk 0:00:07]} 50. b5 {[%clk 0:01:11]}  Kc7 {[%clk 0:00:07]} 51. Rc6+ {[%clk 0:01:11]}  Kb7 {[%clk 0:00:07]} 52. a6+ {[%clk 0:01:11]}  Ka7 {[%clk 0:00:08]} 53. f3 {[%clk 0:01:07]}  Rd5 {[%clk 0:00:08]} 54. Rc7+ {[%clk 0:01:06]}  Kb6 {[%clk 0:00:09]} 55. Rb7+ {[%clk 0:01:06]}  Ka5 {[%clk 0:00:08]} 56. a7 {[%clk 0:01:05]}  Re5+ {[%clk 0:00:07]} 57. Kf2 {[%clk 0:01:05]}  Re8 {[%clk 0:00:08]} 58. Rb8 {[%clk 0:01:05]} 1-0


[Site "https://www.chess.com"]

[Event "Titled Tuesday Blitz August 17 2021"]
[White "Gedajlovic, Max"]
[Black "Nemeth Junior, Henrique"]
[WhiteFideId "2616840"]
[BlackFideId "2118815"]
[WhiteElo "2137"]
[BlackElo "1976"]
[Result "1-0"]
[Round "08"]
[TimeControl "180+1"]
[Date "2021.08.17"]
[WhiteClock "0:02:00"]
[BlackClock "0:00:30"]

1. d4 {[%clk 0:03:00]}  Nf6 {[%clk 0:02:58]} 2. c4 {[%clk 0:03:01]}  c5 {[%clk 0:02:58]} 3. d5 {[%clk 0:03:01]}  e6 {[%clk 0:02:59]} 4. Nc3 {[%clk 0:03:01]}  exd5 {[%clk 0:03:00]} 5. cxd5 {[%clk 0:03:02]}  d6 {[%clk 0:03:01]} 6. e4 {[%clk 0:03:02]}  g6 {[%clk 0:03:01]} 7. h3 {[%clk 0:03:02]}  Bg7 {[%clk 0:03:01]} 8. Nf3 {[%clk 0:03:01]}  O-O {[%clk 0:03:02]} 9. Be2 {[%clk 0:03:01]}  a6 {[%clk 0:03:01]} 10. a4 {[%clk 0:03:00]}  Nbd7 {[%clk 0:02:58]} 11. O-O {[%clk 0:03:00]}  Qc7 {[%clk 0:02:50]} 12. Re1 {[%clk 0:02:58]}  c4 {[%clk 0:02:38]} 13. Bf4 {[%clk 0:02:57]}  Nc5 {[%clk 0:02:25]} 14. Bxc4 {[%clk 0:02:43]}  Ncxe4 {[%clk 0:02:20]} 15. Nxe4 {[%clk 0:02:44]}  Qxc4 {[%clk 0:02:20]} 16. Rc1 {[%clk 0:02:44]}  Qxe4 {[%clk 0:02:07]} 17. Rxe4 {[%clk 0:02:43]}  Nxe4 {[%clk 0:02:07]} 18. Rc7 {[%clk 0:02:38]}  b5 {[%clk 0:01:42]} 19. Nd4 {[%clk 0:02:28]}  bxa4 {[%clk 0:01:35]} 20. Nc6 {[%clk 0:02:28]}  Bxb2 {[%clk 0:01:26]} 21. Qxa4 {[%clk 0:02:27]}  Nc3 {[%clk 0:00:53]} 22. Qb3 {[%clk 0:02:20]}  Ba1 {[%clk 0:00:54]} 23. Bxd6 {[%clk 0:02:14]}  Re8 {[%clk 0:00:52]} 24. Ne7+ {[%clk 0:02:14]}  Rxe7 {[%clk 0:00:43]} 25. Bxe7 {[%clk 0:02:07]}  a5 {[%clk 0:00:40]} 26. Rxc3 {[%clk 0:02:04]}  a4 {[%clk 0:00:35]} 27. Rxc8+ {[%clk 0:02:03]}  Rxc8 {[%clk 0:00:32]} 28. Qxa4 {[%clk 0:02:03]}  Be5 {[%clk 0:00:31]} 29. f4 {[%clk 0:02:01]}  Rc1+ {[%clk 0:00:30]} 30. Kf2 {[%clk 0:02:01]}  Bc3 {[%clk 0:00:30]} 31. d6 {[%clk 0:02:00]} 1-0


[Site "https://www.chess.com"]

[Event "Titled Tuesday Blitz August 17 2021"]
[White "Giroyan, Gary"]
[Black "Roman, Rodrigo"]
[WhiteFideId "680281"]
[BlackFideId "3701220"]
[WhiteElo "2420"]
[BlackElo "2043"]
[Result "0-1"]
[Round "08"]
[TimeControl "180+1"]
[Date "2021.08.17"]
[WhiteClock "0:00:12"]
[BlackClock "0:02:11"]

1. e4 {[%clk 0:03:00]}  a6 {[%clk 0:02:57]} 2. d4 {[%clk 0:02:51]}  b5 {[%clk 0:02:57]} 3. Bd3 {[%clk 0:02:50]}  Bb7 {[%clk 0:02:58]} 4. Qe2 {[%clk 0:02:48]}  Nf6 {[%clk 0:02:57]} 5. Nf3 {[%clk 0:02:40]}  e6 {[%clk 0:02:57]} 6. Bg5 {[%clk 0:02:35]}  Be7 {[%clk 0:02:58]} 7. Nbd2 {[%clk 0:02:17]}  d5 {[%clk 0:02:57]} 8. e5 {[%clk 0:02:17]}  Nfd7 {[%clk 0:02:55]} 9. h4 {[%clk 0:02:16]}  c5 {[%clk 0:02:52]} 10. c3 {[%clk 0:02:15]}  c4 {[%clk 0:02:53]} 11. Bc2 {[%clk 0:02:15]}  Nc6 {[%clk 0:02:54]} 12. Qe3 {[%clk 0:02:01]}  h6 {[%clk 0:02:53]} 13. Bxe7 {[%clk 0:01:59]}  Qxe7 {[%clk 0:02:53]} 14. g4 {[%clk 0:01:50]}  b4 {[%clk 0:02:51]} 15. g5 {[%clk 0:01:40]}  a5 {[%clk 0:02:46]} 16. g6 {[%clk 0:01:31]}  f6 {[%clk 0:02:43]} 17. Ba4 {[%clk 0:01:24]}  O-O {[%clk 0:02:40]} 18. Bxc6 {[%clk 0:00:51]}  Bxc6 {[%clk 0:02:40]} 19. Nf1 {[%clk 0:00:37]}  fxe5 {[%clk 0:02:39]} 20. Nxe5 {[%clk 0:00:35]}  Nxe5 {[%clk 0:02:39]} 21. Qxe5 {[%clk 0:00:33]}  bxc3 {[%clk 0:02:40]} 22. bxc3 {[%clk 0:00:32]}  Qa3 {[%clk 0:02:36]} 23. Qe3 {[%clk 0:00:25]}  Qb2 {[%clk 0:02:33]} 24. Rd1 {[%clk 0:00:22]}  Ba4 {[%clk 0:02:25]} 25. Rd2 {[%clk 0:00:22]}  Qb1+ {[%clk 0:02:16]} 26. Ke2 {[%clk 0:00:22]}  Bc2 {[%clk 0:02:16]} 27. Ng3 {[%clk 0:00:11]}  Bd3+ {[%clk 0:02:11]} 28. Rxd3 {[%clk 0:00:12]}  cxd3+ {[%clk 0:02:11]} 29. Qxd3 {[%clk 0:00:12]}  Rxf2+ {[%clk 0:02:11]} 0-1


[Site "https://www.chess.com"]

[Event "Titled Tuesday Blitz August 17 2021"]
[White "Golubev, Mikhail"]
[Black "Zhuravleva, Olga"]
[WhiteFideId "14100983"]
[BlackFideId "4145933"]
[WhiteElo "2374"]
[BlackElo "2119"]
[Result "0-1"]
[Round "08"]
[TimeControl "180+1"]
[Date "2021.08.18"]
[WhiteClock "0:00:01"]
[BlackClock "0:00:18"]

1. e4 {[%clk 0:03:00]}  e5 {[%clk 0:02:49]} 2. Nf3 {[%clk 0:03:00]}  Nc6 {[%clk 0:02:49]} 3. Bb5 {[%clk 0:03:00]}  f5 {[%clk 0:02:48]} 4. d3 {[%clk 0:02:56]}  Nf6 {[%clk 0:02:47]} 5. exf5 {[%clk 0:02:51]}  Bc5 {[%clk 0:02:46]} 6. O-O {[%clk 0:02:36]}  O-O {[%clk 0:02:46]} 7. Bxc6 {[%clk 0:02:23]}  dxc6 {[%clk 0:02:41]} 8. Nxe5 {[%clk 0:02:23]}  Bxf5 {[%clk 0:02:42]} 9. Nc3 {[%clk 0:02:11]}  Bd4 {[%clk 0:02:41]} 10. Nf3 {[%clk 0:01:27]}  Bg4 {[%clk 0:02:37]} 11. Bg5 {[%clk 0:01:17]}  Bxc3 {[%clk 0:02:29]} 12. bxc3 {[%clk 0:01:15]}  Qd5 {[%clk 0:02:29]} 13. c4 {[%clk 0:00:37]}  Qf5 {[%clk 0:02:03]} 14. Bxf6 {[%clk 0:00:36]}  Rxf6 {[%clk 0:02:01]} 15. Re1 {[%clk 0:00:29]}  Raf8 {[%clk 0:01:56]} 16. Re3 {[%clk 0:00:21]}  Qh5 {[%clk 0:01:50]} 17. Rb1 {[%clk 0:00:18]}  b6 {[%clk 0:01:46]} 18. Qe2 {[%clk 0:00:15]}  Bxf3 {[%clk 0:01:33]} 19. Rxf3 {[%clk 0:00:15]}  Rxf3 {[%clk 0:01:32]} 20. gxf3 {[%clk 0:00:14]}  Rxf3 {[%clk 0:01:31]} 21. Qe6+ {[%clk 0:00:12]}  Qf7 {[%clk 0:01:14]} 22. Re1 {[%clk 0:00:11]}  h6 {[%clk 0:01:09]} 23. Qxc6 {[%clk 0:00:09]}  Rxf2 {[%clk 0:00:38]} 24. Re8+ {[%clk 0:00:08]}  Kh7 {[%clk 0:00:38]} 25. Qe4+ {[%clk 0:00:08]}  Rf5 {[%clk 0:00:36]} 26. Qe2 {[%clk 0:00:03]}  Qg6+ {[%clk 0:00:34]} 27. Kh1 {[%clk 0:00:03]}  Rg5 {[%clk 0:00:20]} 28. Qe3 {[%clk 0:00:01]}  Rf5 {[%clk 0:00:18]} 0-1


[Site "https://www.chess.com"]